fUST/lending_fUST_20250506
["ID","MTS","AMOUNT","RATE_DAILY","PERIOD"]
[360080543,1746540644936,-686.59,0.00019452,2]
[360080544,1746540644945,-659.73,0.00019452,2]
[360080546,1746540644955,-569.38,0.00019452,2]
[360080549,1746540644964,-400.0,0.00019452,2]
[360080551,1746540644974,-400.0,0.00019452,2]
[360080553,1746540644983,-400.0,0.00019452,2]
[360080554,1746540644993,-400.0,0.00019452,2]
[360080557,1746540645002,-1219.67,0.00019452,2]
[360080559,1746540645011,-427.78,0.00019452,2]
[360080560,1746540645021,-983.98,0.00019452,2]
[360080563,1746540645031,-153.247129,0.00019452,2]
[360080564,1746540645042,-400.0,0.00019452,2]
[360080566,1746540645052,-400.0,0.00019452,2]
[360080569,1746540645061,-400.0,0.00019452,2]
[360080571,1746540645071,-400.0,0.00019452,2]
[360080573,1746540645080,-400.0,0.00019452,2]
[360080574,1746540645089,-540.28,0.00019452,2]
[360080577,1746540645099,-400.0,0.00019452,2]
[360080579,1746540645110,-400.0,0.00019452,2]
[360080581,1746540645119,-400.0,0.00019452,2]
[360080582,1746540645128,-400.0,0.00019452,2]
[360080585,1746540645138,-400.0,0.00019452,2]
[360080587,1746540645148,-400.0,0.00019452,2]
[360080589,1746540645157,-640.68,0.00019452,2]
[360080590,1746540645166,-897.26,0.00019452,2]
[360080592,1746540645175,-630.67,0.00019452,2]
[360080595,1746540645185,-561.19,0.00019452,2]
[360080597,1746540645198,-1047.71,0.00019452,2]
[360080598,1746540645207,-400.0,0.00019452,2]
[360080600,1746540645217,-466.68,0.00019452,2]
[360080602,1746540645226,-400.0,0.00019452,2]
[360080604,1746540645235,-400.0,0.00019452,2]
[360080607,1746540645246,-151.0,0.00019452,2]
[360080609,1746540645256,-400.0,0.00019452,2]
[360080611,1746540645265,-400.0,0.00019452,2]
[360080612,1746540645275,-4979.41,0.00019452,2]
[360080614,1746540645285,-5489.49,0.00019452,2]
[360080616,1746540645294,-400.0,0.00019452,2]
[360080618,1746540645304,-763.38,0.00019452,2]
[360080620,1746540645313,-400.0,0.00019452,2]
[360080623,1746540645324,-151.0,0.00019452,2]
[360080625,1746540645333,-400.0,0.00019452,2]
[360080627,1746540645343,-151.0,0.00019452,2]
[360080629,1746540645353,-151.0,0.00019452,2]
[360080631,1746540645363,-151.0,0.00019452,2]
[360080633,1746540645373,-400.0,0.00019452,2]
[360080635,1746540645384,-206.38521689,0.00019452,2]
[360080637,1746540645393,-3190.12,0.00019452,2]
[360080640,1746540645403,-400.0,0.00019452,2]
[360080641,1746540645412,-400.0,0.00019452,2]
[360080643,1746540645422,-400.0,0.00019452,2]
[360080645,1746540645432,-820.54,0.00019452,2]
[360080646,1746540645443,-400.0,0.00019452,2]
[360080647,1746540645452,-151.0,0.00019452,2]
[360080648,1746540645462,-495.61,0.00019452,2]
[360080649,1746540645472,-400.0,0.00019452,2]
[360080650,1746540645483,-1348.79,0.00019452,2]
[360080652,1746540645493,-400.0,0.00019452,2]
[360080654,1746540645503,-400.0,0.00019452,2]
[360080656,1746540645513,-400.0,0.00019452,2]
[360080657,1746540645523,-784.22,0.00019452,2]
[360080659,1746540645533,-400.0,0.00019452,2]
[360080661,1746540645545,-665.78,0.00019452,2]
[360080663,1746540645554,-151.0,0.00019452,2]
[360080665,1746540645563,-151.0,0.00019452,2]
[360080667,1746540645573,-151.0,0.00019452,2]
[360080669,1746540645583,-589.18,0.00019452,2]
[360080671,1746540645593,-1414.26,0.00019452,2]
[360080673,1746540645602,-151.0,0.00019452,2]
[360080675,1746540645611,-400.0,0.00019452,2]
[360080677,1746540645620,-400.0,0.00019452,2]
[360080679,1746540645630,-400.0,0.00019452,2]
[360080681,1746540645640,-151.0,0.00019452,2]
[360080683,1746540645649,-400.0,0.00019452,2]
[360080685,1746540645659,-969.47,0.00019452,2]
[360080687,1746540645670,-151.0,0.00019452,2]
[360080689,1746540645679,-400.0,0.00019452,2]
[360080691,1746540645689,-400.0,0.00019452,2]
[360080693,1746540645700,-851.5,0.00019452,2]
[360080696,1746540645711,-400.0,0.00019452,2]
[360080697,1746540645722,-400.0,0.00019452,2]
[360080699,1746540645731,-448.9042041,0.00019452,2]
[360080701,1746540645741,-400.0,0.00019452,2]
[360080703,1746540645751,-400.0,0.00019452,2]
[360080706,1746540645761,-400.0,0.00019452,2]
[360080708,1746540645770,-300.0,0.00019452,2]
[360080710,1746540645780,-159.82788455,0.00019452,2]
[360080712,1746540645792,-1731.95,0.00019452,2]
[360080714,1746540645801,-400.0,0.00019452,2]
[360080715,1746540645812,-151.0,0.00019452,2]
[360080716,1746540645821,-151.0,0.00019452,2]
[360080717,1746540645831,-400.0,0.00019452,2]
[360080718,1746540645840,-1930.5,0.00019452,2]
[360080719,1746540645849,-151.0,0.00019452,2]
[360080721,1746540645858,-442.72,0.00019452,2]
[360080723,1746540645867,-400.0,0.00019452,2]
[360080725,1746540645877,-596.7,0.00019452,2]
[360080727,1746540645887,-400.0,0.00019452,2]
[360080740,1746540646044,-498.48,0.00019452,2]
[360080741,1746540646054,-151.0,0.00019452,2]
[360080742,1746540646063,-151.0,0.00019452,2]
[360080743,1746540646073,-505.15,0.00019452,2]
[360080744,1746540646083,-400.0,0.00019452,2]
[360080746,1746540646092,-433.81,0.00019452,2]
[360080748,1746540646102,-400.0,0.00019452,2]
[360080750,1746540646111,-400.0,0.00019452,2]
[360080752,1746540646120,-404.56256714,0.00019452,2]
[360080754,1746540646129,-400.0,0.00019452,2]
[360080756,1746540646138,-470.97,0.00019452,2]
[360080757,1746540646148,-403.64168324,0.00019452,2]
[360080759,1746540646157,-429.92,0.00019452,2]
[360080761,1746540646167,-400.0,0.00019452,2]
[360080763,1746540646176,-692.67,0.00019452,2]
[360080765,1746540646185,-400.0,0.00019452,2]
[360080767,1746540646200,-400.0,0.00019452,2]
[360080769,1746540646210,-400.0,0.00019452,2]
[360080771,1746540646219,-523.68315863,0.00019452,2]
[360080773,1746540646229,-591.3312437,0.00019452,2]
[360080775,1746540646239,-400.0,0.00019452,2]
[360080777,1746540646249,-151.0,0.00019452,2]
[360080778,1746540646258,-400.0,0.00019452,2]
[360080779,1746540646270,-519.254164,0.00019452,2]
[360080780,1746540646279,-519.254164,0.00019452,2]
[360080781,1746540646290,-400.0,0.00019452,2]
[360080782,1746540646300,-400.0,0.00019452,2]
[360080783,1746540646310,-400.0,0.00019452,2]
[360080784,1746540646319,-400.0,0.00019452,2]
[360080785,1746540646328,-925.01,0.00019452,2]
[360080786,1746540646337,-400.0,0.00019452,2]
[360080787,1746540646346,-400.0,0.00019452,2]
[360080788,1746540646356,-2645.03,0.00019452,2]
[360080789,1746540646365,-2466.99,0.00019452,2]
[360080790,1746540646374,-400.0,0.00019452,2]
[360080791,1746540646384,-400.0,0.00019452,2]
[360080792,1746540646393,-400.0,0.00019452,2]
[360080793,1746540646402,-400.0,0.00019452,2]
[360080794,1746540646412,-401.94674852,0.00019452,2]
[360080795,1746540646421,-400.0,0.00019452,2]
[360080796,1746540646431,-683.38,0.00019452,2]
[360080797,1746540646440,-495.16,0.00019452,2]
[360080798,1746540646449,-600.69,0.00019452,2]
[360080799,1746540646458,-169.316069,0.00019452,2]
[360080800,1746540646468,-2466.84,0.00019452,2]
[360080801,1746540646477,-400.0,0.00019452,2]
[360080802,1746540646486,-400.0,0.00019452,2]
[360080803,1746540646496,-169.316069,0.00019452,2]
[360080804,1746540646505,-400.0,0.00019452,2]
[360080805,1746540646515,-400.0,0.00019452,2]
[360080806,1746540646524,-400.0,0.00019452,2]
[360080807,1746540646533,-400.0,0.00019452,2]
[360080808,1746540646543,-400.0,0.00019452,2]
[360080809,1746540646552,-151.0,0.00019452,2]
[360080810,1746540646561,-417.45388257,0.00019452,2]
[360080811,1746540646570,-154.30944127,0.00019452,2]
[360080812,1746540646580,-2406.39,0.00019452,2]
[360080813,1746540646589,-151.0,0.00019452,2]
[360080814,1746540646598,-1322.84,0.00019452,2]
[360080815,1746540646607,-400.0,0.00019452,2]
[360080816,1746540646617,-151.0,0.00019452,2]
[360080817,1746540646626,-151.0,0.00019452,2]
[360080818,1746540646635,-414.38058515,0.00019452,2]
[360080819,1746540646644,-1682.92,0.00019452,2]
[360080820,1746540646653,-707.73,0.00019452,2]
[360080821,1746540646662,-400.0,0.00019452,2]
[360080822,1746540646671,-400.0,0.00019452,2]
[360080823,1746540646680,-400.0,0.00019452,2]
[360080824,1746540646690,-405.42983274,0.00019452,2]
[360080825,1746540646699,-2020.67,0.00019452,2]
[360080826,1746540646708,-1801.0,0.00019452,2]
[360080827,1746540646718,-400.0,0.00019452,2]
[360080828,1746540646727,-411.8726672,0.00019452,2]
[360080829,1746540646735,-400.0,0.00019452,2]
[360080830,1746540646745,-400.0,0.00019452,2]
[360080831,1746540646754,-216.6160112,0.00019452,2]
[360080832,1746540646763,-400.0,0.00019452,2]
[360080833,1746540646772,-400.0,0.00019452,2]
[360080834,1746540646782,-643.79,0.00019452,2]
[360080835,1746540646792,-405.48311805,0.00019452,2]
[360080836,1746540646802,-400.0,0.00019452,2]
[360080837,1746540646811,-2391.06,0.00019452,2]
[360080838,1746540646820,-400.0,0.00019452,2]
[360080839,1746540646830,-1387.4,0.00019452,2]
[360080840,1746540646841,-400.0,0.00019452,2]
[360080841,1746540646851,-1938.79,0.00019452,2]
[360080842,1746540646861,-400.0,0.00019452,2]
[360080843,1746540646870,-400.0,0.00019452,2]
[360080844,1746540646880,-153.201412,0.00019452,2]
[360080845,1746540646890,-7780.86,0.00019452,2]
[360080846,1746540646901,-3771.53,0.00019452,2]
[360080847,1746540646912,-400.0,0.00019452,2]
[360080848,1746540646921,-400.0,0.00019452,2]
[360080849,1746540646931,-400.0,0.00019452,2]
[360080850,1746540646940,-400.0,0.00019452,2]
[360080851,1746540646950,-400.0,0.00019452,2]
[360080852,1746540646960,-400.0,0.00019452,2]
[360080853,1746540646969,-400.0,0.00019452,2]
[360080854,1746540646979,-777.59,0.00019452,2]
[360080855,1746540646988,-433.90044506,0.00019452,2]
[360080856,1746540646997,-410.03729739,0.00019452,2]
[360080857,1746540647007,-389.70227789,0.00019452,2]
[360080858,1746540647016,-400.0,0.00019452,2]
[360080859,1746540647026,-400.0,0.00019452,2]
[360080860,1746540647035,-400.0,0.00019452,2]
[360080861,1746540647045,-400.0,0.00019452,2]
[360080862,1746540647054,-510.88,0.00019452,2]
[360080863,1746540647064,-433.22014427,0.00019452,2]
[360080864,1746540647072,-151.0,0.00019452,2]
[360080865,1746540647082,-216.02230012,0.00019452,2]
[360080866,1746540647091,-400.0,0.00019452,2]
[360080867,1746540647100,-400.0,0.00019452,2]
[360080868,1746540647110,-400.0,0.00019452,2]
[360080869,1746540647120,-9064.12,0.00019452,2]
[360080870,1746540647129,-400.0,0.00019452,2]
[360080871,1746540647139,-405.51,0.00019452,2]
[360080872,1746540647148,-400.0,0.00019452,2]
[360080873,1746540647157,-1874.49,0.00019452,2]
[360080874,1746540647166,-408.62378726,0.00019452,2]
[360080875,1746540647175,-400.0,0.00019452,2]
[360080876,1746540647185,-1344.17,0.00019452,2]
[360080877,1746540647197,-400.0,0.00019452,2]
[360080878,1746540647206,-400.0,0.00019452,2]
[360080879,1746540647215,-400.0,0.00019452,2]
[360080880,1746540647225,-400.0,0.00019452,2]
[360080881,1746540647235,-506.65,0.00019452,2]
[360080882,1746540647244,-400.0,0.00019452,2]
[360080883,1746540647254,-183.231814,0.00019452,2]
[360080884,1746540647263,-400.0,0.00019452,2]
[360080885,1746540647273,-3088.97,0.00019452,2]
[360080886,1746540647284,-183.231814,0.00019452,2]
[360080887,1746540647294,-833.12,0.00019452,2]
[360080888,1746540647303,-400.0,0.00019452,2]
[360080889,1746540647313,-400.0,0.00019452,2]
[360080890,1746540647322,-417.69,0.00019452,2]
[360080891,1746540647331,-519.75,0.00019452,2]
[360080892,1746540647341,-400.0,0.00019452,2]
[360080893,1746540647350,-809.3,0.00019452,2]
[360080894,1746540647361,-400.0,0.00019452,2]
[360080895,1746540647370,-2462.55,0.00019452,2]
[360080896,1746540647379,-400.0,0.00019452,2]
[360080897,1746540647388,-884.07,0.00019452,2]
[360080898,1746540647398,-3622.27,0.00019452,2]
[360080899,1746540647408,-400.0,0.00019452,2]
[360080900,1746540647417,-550.04,0.00019452,2]
[360080901,1746540647428,-1796.34,0.00019452,2]
[360080902,1746540647439,-18541.14,0.00019452,2]
[360080903,1746540647449,-400.0,0.00019452,2]
[360080904,1746540647459,-400.0,0.00019452,2]
[360080905,1746540647468,-481.53152116,0.00019452,2]
[360080906,1746540647478,-1257.59,0.00019452,2]
[360080907,1746540647487,-400.0,0.00019452,2]
[360080908,1746540647497,-400.0,0.00019452,2]
[360080909,1746540647506,-2727.04,0.00019452,2]
[360080910,1746540647517,-400.0,0.00019452,2]
[360080911,1746540647528,-437.51,0.00019452,2]
[360080912,1746540647538,-1213.84,0.00019452,2]
[360080913,1746540647548,-564.18,0.00019452,2]
[360080914,1746540647557,-400.0,0.00019452,2]
[360080915,1746540647566,-400.0,0.00019452,2]
[360080916,1746540647576,-749.43,0.00019452,2]
[360080917,1746540647585,-1040.35,0.00019452,2]
[360080918,1746540647595,-1079.97,0.00019452,2]
[360080919,1746540647604,-400.0,0.00019452,2]
[360080920,1746540647613,-400.0,0.00019452,2]
[360080921,1746540647622,-152.477381,0.00019452,2]
[360080922,1746540647631,-916.55,0.00019452,2]
[360080923,1746540647641,-400.0,0.00019452,2]
[360080924,1746540647651,-1446.29,0.00019452,2]
[360080925,1746540647660,-822.18,0.00019452,2]
[360080926,1746540647669,-1251.97,0.00019452,2]
[360080927,1746540647677,-224.52175853,0.00019452,2]
[360080928,1746540647686,-400.0,0.00019452,2]
[360080929,1746540647695,-400.0,0.00019452,2]
[360080930,1746540647705,-400.0,0.00019452,2]
[360080931,1746540647713,-400.0,0.00019452,2]
[360080932,1746540647723,-505.17156563,0.00019452,2]
[360080933,1746540647732,-1363.62,0.00019452,2]
[360080934,1746540647742,-400.0,0.00019452,2]
[360080935,1746540647751,-562.23,0.00019452,2]
[360080936,1746540647761,-790.905965,0.00019452,2]
[360080937,1746540647770,-400.0,0.00019452,2]
[360080938,1746540647779,-5208.12,0.00019452,2]
[360080939,1746540647788,-400.0,0.00019452,2]
[360080940,1746540647798,-790.905965,0.00019452,2]
[360080941,1746540647808,-400.0,0.00019452,2]
[360080942,1746540647819,-7540.48,0.00019452,2]
[360080943,1746540647828,-151.0,0.00019452,2]
[360080944,1746540647838,-400.0,0.00019452,2]
[360080945,1746540647848,-1053.76,0.00019452,2]
[360080946,1746540647858,-400.0,0.00019452,2]
[360080947,1746540647868,-400.0,0.00019452,2]
[360080948,1746540647877,-500.0,0.00019452,2]
[360080949,1746540647887,-1609.15,0.00019452,2]
[360080950,1746540647896,-3343.96,0.00019452,2]
[360080951,1746540647906,-403.1,0.00019452,2]
[360080952,1746540647916,-400.0,0.00019452,2]
[360080953,1746540647925,-400.0,0.00019452,2]
[360080954,1746540647935,-400.0,0.00019452,2]
[360080955,1746540647945,-400.0,0.00019452,2]
[360080956,1746540647955,-400.0,0.00019452,2]
[360080957,1746540647964,-400.0,0.00019452,2]
[360080958,1746540647974,-400.0,0.00019452,2]
[360080959,1746540647984,-307.28029054,0.00019452,2]
[360080960,1746540647994,-400.0,0.00019452,2]
[360080961,1746540648004,-415.73,0.00019452,2]
[360080962,1746540648013,-1938.83,0.00019452,2]
[360080963,1746540648023,-2384.1,0.00019452,2]
[360080964,1746540648032,-400.0,0.00019452,2]
[360080965,1746540648043,-2062.03,0.00019452,2]
[360080966,1746540648055,-400.0,0.00019452,2]
[360080967,1746540648065,-400.0,0.00019452,2]
[360080968,1746540648075,-558.48,0.00019452,2]
[360080969,1746540648084,-400.0,0.00019452,2]
[360080970,1746540648094,-400.0,0.00019452,2]
[360080971,1746540648105,-400.0,0.00019452,2]
[360080972,1746540648114,-650.2,0.00019452,2]
[360080973,1746540648123,-400.0,0.00019452,2]
[360080974,1746540648133,-1488.42,0.00019452,2]
[360080975,1746540648142,-600.2,0.00019452,2]
[360080976,1746540648152,-400.0,0.00019452,2]
[360080977,1746540648160,-400.0,0.00019452,2]
[360080978,1746540648170,-2298.0,0.00019452,2]
[360080979,1746540648179,-400.0,0.00019452,2]
[360080980,1746540648189,-400.0,0.00019452,2]
[360080981,1746540648203,-2863.49,0.00019452,2]
[360080982,1746540648213,-151.0,0.00019452,2]
[360080983,1746540648223,-151.0,0.00019452,2]
[360080984,1746540648232,-1130.69,0.00019452,2]
[360080985,1746540648242,-400.0,0.00019452,2]
[360080986,1746540648252,-567.87,0.00019452,2]
[360080987,1746540648262,-151.0,0.00019452,2]
[360080988,1746540648273,-559.2,0.00019452,2]
[360080989,1746540648283,-400.0,0.00019452,2]
[360080990,1746540648295,-400.0,0.00019452,2]
[360080991,1746540648306,-400.0,0.00019452,2]
[360080992,1746540648317,-400.0,0.00019452,2]
[360080993,1746540648327,-400.0,0.00019452,2]
[360080994,1746540648338,-1811.16,0.00019452,2]
[360080995,1746540648349,-400.0,0.00019452,2]
[360080996,1746540648360,-400.0,0.00019452,2]
[360080997,1746540648371,-1986.4,0.00019452,2]
[360080998,1746540648381,-500.0,0.00019452,2]
[360080999,1746540648390,-151.0,0.000195,2]
[360081000,1746540648400,-32615.49,0.000195,5]
[360081001,1746540648411,-151.0,0.000195,2]
[360081002,1746540648421,-151.0,0.000195,2]
[360081003,1746540648430,-151.0,0.000195,2]
[360081004,1746540648440,-187.962784,0.00019599,2]
[360081005,1746540648449,-790.905965,0.00019599,2]
[360081006,1746540648459,-790.905965,0.00019599,2]
[360081007,1746540648469,-151.0,0.00019599,2]
[360081008,1746540648478,-151.0,0.00019599,2]
[360081009,1746540648608,-205.78195,0.00019599,2]
[360081010,1746540648619,-151.0,0.00019599,2]
[360081011,1746540648630,-841.96455721,0.00019599,3]
[360081012,1746540648640,-12610.21250885,0.00019599,3]
[360081013,1746540648650,-212.03916285,0.00019599,3]
[360081014,1746540648659,-111914.41587122,0.00019599,3]
[360081015,1746540648669,-291334.79061724,0.000196,2]
[360081016,1746540648679,-151.0,0.000196,2]
[360081017,1746540648689,-140114.11929515,0.000196,2]
[360081018,1746540648911,-2463.15382835,0.000196,2]
[360081019,1746540648928,-2179.38833857,0.000196,2]
[360081020,1746540649292,-18915.76541911,0.000196,2]
[360081021,1746540649305,-106600.71255601,0.000196,2]
[360081022,1746540649316,-183.231814,0.000196,2]
[360081023,1746540649326,-183.231814,0.000196,2]
[360081024,1746540649335,-183.231814,0.000196,2]
[360081025,1746540649345,-183.231814,0.000196,2]
[360081026,1746540649354,-790.905965,0.000196,2]
[360081027,1746540649365,-790.905965,0.000196,2]
[360081028,1746540649375,-790.905965,0.000196,2]
[360081029,1746540649385,-790.905965,0.000196,2]
[360081030,1746540649395,-151.0,0.000196,2]
[360081031,1746540649405,-292.723392,0.000196,2]
[360081032,1746540649415,-151.0,0.000196,2]
[360081033,1746540649424,-151.0,0.000196,2]
[360081034,1746540649434,-928.7237354,0.00019627,2]
[360081035,1746540649444,-151.0,0.00019723,2]
[360081036,1746540649454,-253.86093688,0.00019723,2]
[360081037,1746540649464,-226.541603,0.00019723,2]
[360081038,1746540649473,-226.541603,0.00019723,2]
[360081039,1746540649482,-209.994111,0.00019723,2]
[360081040,1746540649491,-151.0,0.00019723,2]
[360081041,1746540649501,-160.0,0.00019724,3]
[360081042,1746540649511,-160.0,0.00019724,3]
[360081043,1746540649520,-151.0,0.00019724,2]
[360081044,1746540649529,-261.88072,0.00019724,2]
[360081045,1746540649539,-151.0,0.00019724,2]
[360081046,1746540649549,-151.0,0.00019724,2]
[360081047,1746540649559,-151.0,0.00019724,2]
[360081048,1746540649569,-151.0,0.00019724,2]
[360081049,1746540649578,-151.0,0.00019724,2]
[360081050,1746540649587,-151.0,0.00019724,2]
[360081051,1746540649596,-152.667299,0.00019724,2]
[360081052,1746540649606,-151.0,0.00019724,2]
[360081053,1746540649616,-519.254164,0.00019724,2]
[360081054,1746540649625,-519.254164,0.00019724,2]
[360081055,1746540649635,-169.316069,0.00019724,2]
[360081056,1746540649644,-169.316069,0.00019724,2]
[360081057,1746540649653,-151.0,0.00019724,2]
[360081058,1746540649663,-189.110591,0.00019724,2]
[360081059,1746540649672,-151.0,0.00019724,2]
[360081060,1746540649682,-151.0,0.00019724,2]
[360081061,1746540649691,-160.0,0.00019724,3]
[360081062,1746540649701,-6246.829999,0.00019725,2]
[360081063,1746540649711,-151.0,0.00019725,2]
[360081064,1746540649720,-151.0,0.00019725,2]
[360081065,1746540649730,-151.0,0.00019725,2]
[360081066,1746540649739,-226.541603,0.00019725,2]
[360081067,1746540649748,-226.541603,0.00019725,2]
[360081068,1746540649758,-226.541603,0.00019725,2]
[360081069,1746540649768,-226.541603,0.00019725,2]
[360081070,1746540649778,-209.994111,0.00019725,2]
[360081071,1746540649789,-209.994111,0.00019725,2]
[360081072,1746540649798,-151.0,0.00019725,2]
[360081073,1746540649808,-151.0,0.00019725,2]
[360081074,1746540649818,-284.776816,0.00019725,2]
[360081075,1746540649827,-151.0,0.00019725,2]
[360081076,1746540649837,-151.0,0.00019725,2]
[360081077,1746540649846,-297.748,0.00019725,2]
[360081078,1746540649855,-151.0,0.00019725,2]
[360081079,1746540649865,-151.0,0.00019725,2]
[360081080,1746540649874,-151.0,0.00019725,2]
[360081081,1746540649883,-151.0,0.00019725,2]
[360081082,1746540649893,-151.0,0.00019725,2]
[360081083,1746540649902,-151.0,0.00019725,2]
[360081084,1746540649912,-151.0,0.00019725,2]
[360081085,1746540649922,-151.0,0.00019725,2]
[360081086,1746540649931,-151.0,0.00019725,2]
[360081087,1746540649941,-151.0,0.00019725,2]
[360081088,1746540649951,-151.0,0.00019725,2]
[360081089,1746540649961,-151.0,0.00019725,2]
[360081090,1746540649971,-151.0,0.00019725,2]
[360081091,1746540649982,-193.0,0.00019725,2]
[360081092,1746540649992,-151.0,0.00019725,2]
[360081093,1746540650001,-151.0,0.00019725,2]
[360081094,1746540650011,-151.0,0.00019725,2]
[360081095,1746540650020,-151.0,0.00019725,2]
[360081096,1746540650030,-151.0,0.00019725,2]
[360081097,1746540650041,-151.0,0.00019725,2]
[360081098,1746540650051,-151.0,0.00019725,2]
[360081099,1746540650060,-275.282959,0.00019725,2]
[360081100,1746540650070,-151.0,0.00019725,2]
[360081101,1746540650079,-151.0,0.00019725,2]
[360081102,1746540650089,-519.254164,0.00019725,2]
[360081103,1746540650098,-519.254164,0.00019725,2]
[360081104,1746540650108,-519.254164,0.00019725,2]
[360081105,1746540650118,-519.254164,0.00019725,2]
[360081106,1746540650127,-169.316069,0.00019725,2]
[360081107,1746540650137,-169.316069,0.00019725,2]
[360081108,1746540650146,-169.316069,0.00019725,2]
[360081109,1746540650156,-169.316069,0.00019725,2]
[360081110,1746540650165,-151.0,0.00019725,2]
[360081111,1746540650175,-151.0,0.00019725,2]
[360081112,1746540650184,-151.0,0.00019725,2]
[360081113,1746540650195,-153.285139,0.00019725,2]
[360081114,1746540650206,-155.0,0.00019725,2]
[360081115,1746540650216,-143095.95017343,0.00019726,5]
[360081116,1746540650445,-400.0,0.00019178,2]
[360081117,1746540650454,-192.044629,0.00019452,2]
[360081118,1746540650466,-207.955371,0.00019452,2]
[360081119,1746540650475,-61917.7066366,0.00019726,5]
[360081189,1746541832074,-250.0,0.00012291,2]
[360081190,1746541832085,-827.32851196,0.00012391,2]
[360081191,1746541832095,-2793.994849,0.00015155,2]
[360081192,1746541832104,-4954.8255746,0.0001537,2]
[360081193,1746541832114,-300.0,0.00016368,2]
[360081195,1746541832124,-300.0,0.00016369,2]
[360081196,1746541832133,-300.0,0.00016369,2]
[360081197,1746541832142,-807.0,0.00016369,2]
[360081198,1746541832153,-500.0,0.0001637,2]
[360081199,1746541832162,-500.0,0.0001637,2]
[360081200,1746541832172,-462.65793717,0.0001637,2]
[360081201,1746541832182,-500.0,0.0001637,2]
[360081202,1746541832191,-500.0,0.0001637,2]
[360081203,1746541832201,-197.195843,0.0001637,2]
[360081204,1746541832210,-500.0,0.0001637,2]
[360081205,1746541832219,-540.54874676,0.0001637,2]
[360081206,1746541832229,-500.0,0.0001637,2]
[360081207,1746541832239,-500.0,0.0001637,2]
[360081208,1746541832249,-500.0,0.0001637,2]
[360081210,1746541832258,-133.21831186,0.0001637,2]
[360081214,1746541832279,-366.78168814,0.0001637,2]
[360081217,1746541832289,-28700.692636,0.0001637,2]
[360081219,1746541832300,-263.07917187,0.0001637,2]
[360081859,1746542690451,20925.85268864,0.00021,10]
[360081989,1746543030341,134.56261798,0.0002579,120]
[360082009,1746543032361,-156.18277155,0.00014022,2]
[360082010,1746543032371,-1020.9324621,0.000141,2]
[360082011,1746543032380,-151.0,0.00014118,2]
[360082012,1746543032389,-226.72763853,0.00014125,2]
[360082013,1746543032399,-500.0,0.00014126,2]
[360082014,1746543032409,-500.0,0.00014126,2]
[360082015,1746543032418,-544.30471638,0.00014126,2]
[360082016,1746543032428,-500.0,0.00014126,2]
[360082017,1746543032437,-154.0,0.00014126,2]
[360082018,1746543032447,-5508.07957494,0.00014127,2]
[360082043,1746543038306,-19391.92042506,0.00014127,2]
[360082045,1746543038316,-18265.99850309,0.00014127,2]
[360082047,1746543038327,-500.0,0.000142,2]